fUST/lending_fUST_20250812
["ID","MTS","AMOUNT","RATE_DAILY","PERIOD"]
[378745777,1754999457382,-614.81,0.00021028,2]
[378745779,1754999457392,-1240.1,0.00021028,2]
[378745781,1754999457401,-2271.22,0.00021028,2]
[378745783,1754999457410,-738.75,0.00021028,2]
[378745785,1754999457419,-809.07,0.00021028,2]
[378745787,1754999457429,-3031.64,0.00021028,2]
[378745789,1754999457439,-2190.45,0.00021028,2]
[378745790,1754999457448,-690.58,0.00021028,2]
[378745792,1754999457458,-660.34,0.00021028,2]
[378745794,1754999457471,-901.33,0.00021028,2]
[378745796,1754999457487,-913.8,0.00021028,2]
[378745798,1754999457499,-460.0,0.00021028,2]
[378745800,1754999457512,-1297.63,0.00021028,2]
[378745802,1754999457522,-1285.97,0.00021028,2]
[378745804,1754999457531,-545.99,0.00021029,2]
[378745806,1754999457540,-194.1772164,0.00021029,2]
[378745808,1754999457550,-460.0,0.00021029,2]
[378745811,1754999457559,-460.0,0.00021029,2]
[378745813,1754999457569,-381.70116545,0.00021029,2]
[378745815,1754999457578,-820.46,0.00021029,2]
[378745817,1754999457587,-460.0,0.00021029,2]
[378745819,1754999457596,-460.0,0.00021029,2]
[378745821,1754999457606,-525.01,0.00021029,2]
[378745822,1754999457615,-460.0,0.00021029,2]
[378745825,1754999457625,-680.61,0.00021029,2]
[378745827,1754999457634,-496.07,0.00021029,2]
[378745829,1754999457644,-460.0,0.00021029,2]
[378745831,1754999457654,-460.0,0.00021029,2]
[378745833,1754999457663,-532.35,0.00021029,2]
[378745835,1754999457673,-460.0,0.00021029,2]
[378745836,1754999457682,-460.0,0.00021029,2]
[378745838,1754999457691,-859.22,0.00021029,2]
[378745840,1754999457701,-1185.74,0.00021029,2]
[378745842,1754999457710,-605.7,0.00021029,2]
[378745844,1754999457720,-1493.03,0.00021029,2]
[378745846,1754999457729,-1651.31,0.00021029,2]
[378745848,1754999457738,-710.28,0.00021029,2]
[378745850,1754999457748,-2045.54,0.00021029,2]
[378745852,1754999457757,-151.0,0.0002103,2]
[378745854,1754999457768,-1500.0,0.00021039,2]
[378745856,1754999457778,-1006.63912905,0.00021039,2]
[378745858,1754999457787,-329.40858274,0.00021039,2]
[378745861,1754999457797,-330.148708,0.00021039,2]
[378745863,1754999457806,-1113.96151372,0.00021039,2]
[378745865,1754999457815,-11103.67482366,0.00021041,2]
[378745866,1754999457825,-746.0,0.00021061,2]
[378745868,1754999457834,-337.0,0.00021068,2]
[378745870,1754999457843,-5980.24778991,0.00021083,2]
[378745873,1754999457854,-2000.0,0.000211,2]
[378745875,1754999457862,-746.0,0.00021113,2]
[378745877,1754999457872,-601.55830971,0.0002112,2]
[378745879,1754999457881,-746.0,0.0002113,2]
[378745881,1754999457890,-261.2152271,0.00021141,2]
[378745883,1754999457900,-157.49657069,0.00021141,2]
[378745885,1754999457909,-500.0,0.00021141,2]
[378745887,1754999457918,-218.1880487,0.00021141,2]
[378745889,1754999457927,-1672.0,0.00021141,2]
[378745890,1754999457937,-2475.0,0.00021141,2]
[378745892,1754999457946,-1500.0,0.00021153,2]
[378745894,1754999457955,-1500.0,0.00021153,2]
[378745896,1754999457965,-1500.0,0.00021153,2]
[378745898,1754999457975,-1500.0,0.00021153,2]
[378745901,1754999457985,-1500.0,0.00021153,2]
[378745903,1754999457994,-1500.0,0.00021153,2]
[378745905,1754999458003,-1500.0,0.00021153,2]
[378745906,1754999458013,-500.94656996,0.00021153,2]
[378745908,1754999458022,-1005.96788698,0.00021153,2]
[378745910,1754999458032,-1500.0,0.00021153,2]
[378745912,1754999458041,-1500.0,0.00021153,2]
[378745914,1754999458050,-1132.69101586,0.00021155,2]
[378745916,1754999458059,-151.0,0.00021176,2]
[378745918,1754999458068,-151.0,0.00021176,2]
[378745920,1754999458078,-151.0,0.00021176,2]
[378745922,1754999458087,-220.14342274,0.00021177,2]
[378745924,1754999458096,-250.0,0.00021177,2]
[378745926,1754999458105,-274.6,0.00021195,2]
[378745928,1754999458115,-2500.0,0.00021202,2]
[378745930,1754999458124,-500.0,0.00021256,2]
[378745932,1754999458133,-500.0,0.00021256,2]
[378745934,1754999458142,-500.47983404,0.00021256,2]
[378745936,1754999458151,-2500.0,0.0002127,2]
[378745938,1754999458161,-500.0,0.00021295,2]
[378745940,1754999458171,-500.95977283,0.00021295,2]
[378745942,1754999458180,-500.0,0.00021295,2]
[378745944,1754999458190,-157.49121041,0.00021295,2]
[378745946,1754999458199,-168.50153959,0.00021295,2]
[378745949,1754999458209,-400.20297603,0.00021295,2]
[378745951,1754999458218,-500.0,0.00021295,2]
[378745953,1754999458227,-340.16250563,0.00021295,2]
[378745954,1754999458237,-158.49501972,0.00021295,2]
[378745957,1754999458246,-50000.0,0.000213,7]
[378745959,1754999458255,-496.07,0.00021301,2]
[378745960,1754999458266,-1165.86,0.00021301,2]
[378745963,1754999458277,-460.0,0.00021301,2]
[378745965,1754999458289,-2820.53,0.00021301,2]
[378745966,1754999458298,-479.34,0.00021301,2]
[378745968,1754999458307,-460.0,0.00021301,2]
[378745971,1754999458317,-498.77,0.00021302,2]
[378745973,1754999458329,-460.0,0.00021302,2]
[378745974,1754999458338,-864.62,0.00021302,2]
[378745977,1754999458348,-503.66,0.00021302,2]
[378745978,1754999458358,-460.0,0.00021302,2]
[378745980,1754999458367,-180.03716305,0.00021302,2]
[378745982,1754999458377,-512.7,0.00021302,2]
[378745984,1754999458386,-460.0,0.00021302,2]
[378745986,1754999458396,-751.06,0.00021302,2]
[378745988,1754999458405,-1574.34,0.00021302,2]
[378745991,1754999458414,-460.71,0.00021302,2]
[378745993,1754999458424,-470.05,0.00021302,2]
[378745995,1754999458433,-562.54723323,0.00021302,2]
[378745997,1754999458442,-460.0,0.00021302,2]
[378745998,1754999458451,-176.3,0.00021302,2]
[378746001,1754999458462,-887.9,0.00021302,2]
[378746002,1754999458472,-620.31,0.00021302,2]
[378746004,1754999458481,-460.0,0.00021302,2]
[378746007,1754999458490,-1944.03,0.00021302,2]
[378746008,1754999458500,-460.0,0.00021302,2]
[378746011,1754999458509,-460.0,0.00021302,2]
[378746013,1754999458518,-460.0,0.00021302,2]
[378746015,1754999458528,-3053.39,0.00021302,2]
[378746017,1754999458537,-566.46,0.00021302,2]
[378746019,1754999458546,-1262.56,0.00021302,2]
[378746021,1754999458556,-460.0,0.00021302,2]
[378746023,1754999458566,-537.36,0.00021302,2]
[378746025,1754999458575,-802.85,0.00021302,2]
[378746027,1754999458583,-1114.79,0.00021302,2]
[378746029,1754999458593,-8236.83,0.00021302,2]
[378746031,1754999458602,-882.18,0.00021302,2]
[378746033,1754999458611,-460.0,0.00021302,2]
[378746035,1754999458621,-191.94259321,0.00021302,2]
[378746037,1754999458631,-614.81,0.00021302,2]
[378746039,1754999458640,-1240.1,0.00021302,2]
[378746041,1754999458650,-2271.22,0.00021302,2]
[378746043,1754999458660,-738.75,0.00021302,2]
[378746045,1754999458669,-809.07,0.00021302,2]
[378746047,1754999458679,-3031.64,0.00021302,2]
[378746049,1754999458688,-2190.45,0.00021302,2]
[378746051,1754999458697,-690.58,0.00021302,2]
[378746053,1754999458707,-660.34,0.00021302,2]
[378746055,1754999458717,-901.33,0.00021302,2]
[378746057,1754999458727,-913.8,0.00021302,2]
[378746059,1754999458736,-460.0,0.00021302,2]
[378746061,1754999458746,-1297.63,0.00021302,2]
[378746063,1754999458755,-1285.97,0.00021302,2]
[378746065,1754999458764,-545.99,0.00021303,2]
[378746067,1754999458773,-460.0,0.00021303,2]
[378746069,1754999458783,-460.0,0.00021303,2]
[378746071,1754999458792,-820.46,0.00021303,2]
[378746072,1754999458801,-460.0,0.00021303,2]
[378746073,1754999458811,-460.0,0.00021303,2]
[378746074,1754999458820,-525.01,0.00021303,2]
[378746075,1754999458829,-460.0,0.00021303,2]
[378746076,1754999458838,-680.61,0.00021303,2]
[378746077,1754999458847,-496.07,0.00021303,2]
[378746078,1754999458856,-460.0,0.00021303,2]
[378746079,1754999458865,-460.0,0.00021303,2]
[378746080,1754999458875,-532.35,0.00021303,2]
[378746081,1754999458884,-460.0,0.00021303,2]
[378746082,1754999458894,-460.0,0.00021303,2]
[378746084,1754999458904,-859.22,0.00021303,2]
[378746086,1754999458914,-1185.74,0.00021303,2]
[378746088,1754999458924,-605.7,0.00021303,2]
[378746090,1754999458934,-1493.03,0.00021303,2]
[378746092,1754999458943,-151.0,0.00021303,2]
[378746094,1754999458952,-1651.31,0.00021303,2]
[378746096,1754999458962,-151.0,0.00021303,2]
[378746098,1754999458971,-710.28,0.00021303,2]
[378746100,1754999458981,-2045.54,0.00021303,2]
[378746102,1754999458990,-153.175718,0.00021303,2]
[378746104,1754999459000,-151.0,0.00021303,2]
[378746106,1754999459009,-212.596383,0.00021303,2]
[378746108,1754999459018,-500.0,0.00021314,2]
[378746110,1754999459028,-500.0,0.00021314,2]
[378746112,1754999459037,-746.0,0.00021332,2]
[378746114,1754999459047,-500.0,0.00021367,2]
[378746116,1754999459056,-500.0,0.00021367,2]
[378746118,1754999459065,-500.0,0.00021378,2]
[378746120,1754999459074,-500.0,0.00021378,2]
[378746122,1754999459083,-500.0,0.00021378,2]
[378746124,1754999459093,-500.0,0.00021378,2]
[378746126,1754999459102,-500.0,0.00021378,2]
[378746128,1754999459111,-500.39865225,0.00021378,2]
[378746133,1754999459249,-500.0,0.00021378,2]
[378746134,1754999459259,-500.0,0.00021378,2]
[378746135,1754999459268,-8602.94526065,0.00021381,2]
[378746136,1754999459278,-2463.44925064,0.00021382,2]
[378746137,1754999459291,-500.0,0.00021415,2]
[378746138,1754999459300,-1672.0,0.00021415,2]
[378746139,1754999459309,-2475.0,0.00021415,2]
[378746140,1754999459318,-151.0,0.00021423,2]
[378746141,1754999459327,-284.447426,0.00021423,2]
[378746142,1754999459337,-151.0,0.00021424,2]
[378746143,1754999459346,-587.0,0.00021443,2]
[378746144,1754999459355,-746.0,0.00021459,2]
[378746145,1754999459365,-3500.0,0.0002146,2]
[378746146,1754999459375,-3500.0,0.0002146,2]
[378746147,1754999459384,-274.6,0.00021464,2]
[378746148,1754999459393,-301.0,0.00021496,2]
[378746150,1754999459403,-12579.74465284,0.000215,2]
[378746152,1754999459412,-151.0,0.000215,2]
[378746153,1754999459422,-151.0,0.000215,2]
[378746154,1754999459431,-151.0,0.00021514,2]
[378746155,1754999459441,-230.725596,0.00021514,2]
[378746156,1754999459451,-151.0,0.00021514,2]
[378746157,1754999459461,-3145.559633,0.00021514,2]
[378746158,1754999459472,-3145.559633,0.00021514,2]
[378746159,1754999459481,-560.0,0.00021523,2]
[378746160,1754999459491,-5000.0,0.00021523,2]
[378746161,1754999459500,-160.0,0.00021528,6]
[378746162,1754999459510,-746.0,0.00021533,2]
[378746163,1754999459519,-746.0,0.00021547,2]
[378746164,1754999459529,-305.87705026,0.00021564,2]
[378746165,1754999459538,-2500.0,0.00021564,2]
[378746166,1754999459548,-496.07,0.00021575,2]
[378746167,1754999459558,-1165.86,0.00021575,2]
[378746168,1754999459567,-460.0,0.00021575,2]
[378746169,1754999459577,-2820.53,0.00021575,2]
[378746170,1754999459587,-479.34,0.00021575,2]
[378746171,1754999459597,-460.0,0.00021575,2]
[378746172,1754999459606,-498.77,0.00021576,2]
[378746173,1754999459616,-460.0,0.00021576,2]
[378746174,1754999459625,-864.62,0.00021576,2]
[378746175,1754999459635,-503.66,0.00021576,2]
[378746176,1754999459644,-460.0,0.00021576,2]
[378746177,1754999459653,-512.7,0.00021576,2]
[378746178,1754999459662,-460.0,0.00021576,2]
[378746179,1754999459673,-751.06,0.00021576,2]
[378746180,1754999459683,-1574.34,0.00021576,2]
[378746181,1754999459693,-460.71,0.00021576,2]
[378746182,1754999459703,-470.05,0.00021576,2]
[378746183,1754999459722,-460.0,0.00021576,2]
[378746184,1754999459734,-887.9,0.00021576,2]
[378746185,1754999459745,-620.31,0.00021576,2]
[378746186,1754999459755,-460.0,0.00021576,2]
[378746187,1754999459766,-1944.03,0.00021576,2]
[378746188,1754999459776,-460.0,0.00021576,2]
[378746189,1754999459787,-460.0,0.00021576,2]
[378746190,1754999459797,-460.0,0.00021576,2]
[378746191,1754999459807,-3053.39,0.00021576,2]
[378746192,1754999459818,-566.46,0.00021576,2]
[378746193,1754999459828,-1262.56,0.00021576,2]
[378746194,1754999459838,-460.0,0.00021576,2]
[378746195,1754999459848,-537.36,0.00021576,2]
[378746196,1754999459858,-802.85,0.00021576,2]
[378746197,1754999459869,-1114.79,0.00021576,2]
[378746198,1754999459879,-8236.83,0.00021576,2]
[378746199,1754999459889,-882.18,0.00021576,2]
[378746200,1754999459899,-460.0,0.00021576,2]
[378746201,1754999459910,-614.81,0.00021576,2]
[378746202,1754999459920,-1240.1,0.00021576,2]
[378746203,1754999459931,-2271.22,0.00021576,2]
[378746204,1754999459941,-738.75,0.00021576,2]
[378746205,1754999459951,-809.07,0.00021576,2]
[378746206,1754999459962,-3031.64,0.00021576,2]
[378746207,1754999459972,-2190.45,0.00021576,2]
[378746208,1754999459982,-690.58,0.00021576,2]
[378746209,1754999459993,-660.34,0.00021576,2]
[378746210,1754999460003,-901.33,0.00021576,2]
[378746211,1754999460014,-913.8,0.00021576,2]
[378746212,1754999460024,-460.0,0.00021576,2]
[378746213,1754999460034,-1297.63,0.00021576,2]
[378746214,1754999460044,-1285.97,0.00021576,2]
[378746215,1754999460055,-545.99,0.00021577,2]
[378746216,1754999460065,-460.0,0.00021577,2]
[378746217,1754999460075,-460.0,0.00021577,2]
[378746218,1754999460086,-820.46,0.00021577,2]
[378746219,1754999460096,-460.0,0.00021577,2]
[378746220,1754999460106,-460.0,0.00021577,2]
[378746221,1754999460116,-525.01,0.00021577,2]
[378746222,1754999460126,-460.0,0.00021577,2]
[378746223,1754999460136,-680.61,0.00021577,2]
[378746224,1754999460146,-496.07,0.00021577,2]
[378746225,1754999460156,-170.34023843,0.00021577,2]
[378746226,1754999460166,-460.0,0.00021577,2]
[378746227,1754999460176,-532.35,0.00021577,2]
[378746228,1754999460186,-302.38163786,0.00021577,2]
[378746229,1754999460197,-460.0,0.00021577,2]
[378746230,1754999460209,-859.22,0.00021577,2]
[378746231,1754999460219,-1185.74,0.00021577,2]
[378746232,1754999460230,-605.7,0.00021577,2]
[378746233,1754999460240,-1493.03,0.00021577,2]
[378746234,1754999460251,-1651.31,0.00021577,2]
[378746235,1754999460262,-710.28,0.00021577,2]
[378746236,1754999460273,-2045.54,0.00021577,2]
[378746237,1754999460287,-151.0,0.00021578,2]
[378746238,1754999460298,-2000.0,0.00021587,2]
[378746239,1754999460308,-151.0,0.00021591,2]
[378746240,1754999460319,-19187.29552238,0.00021591,2]
[378746241,1754999460329,-1281.08118162,0.00021596,2]
[378746242,1754999460340,-1000.0,0.000216,6]
[378746243,1754999460355,-1137.36,0.000216,7]
[378746244,1754999460365,-800.0,0.00021642,2]
[378746245,1754999460376,-41551.25947624,0.00021655,2]
[378746246,1754999460386,-151.0,0.00021655,2]
[378746247,1754999460396,-151.0,0.00021655,2]
[378746248,1754999460406,-151.0,0.00021655,2]
[378746249,1754999460416,-746.0,0.00021664,2]
[378746250,1754999460425,-746.0,0.00021677,2]
[378746251,1754999460436,-500.0,0.00021689,2]
[378746252,1754999460447,-1672.0,0.00021689,2]
[378746253,1754999460458,-2475.0,0.00021689,2]
[378746254,1754999460468,-162.65333618,0.00021699,2]
[378746255,1754999460477,-2000.0,0.00021701,2]
[378746256,1754999460488,-199.96619511,0.00021701,2]
[378746257,1754999460498,-178.83565926,0.00021701,2]
[378746258,1754999460509,-2000.0,0.00021701,2]
[378746259,1754999460519,-2000.0,0.00021701,2]
[378746260,1754999460529,-2000.0,0.00021701,2]
[378746261,1754999460540,-1003.30268906,0.00021701,2]
[378746262,1754999460551,-2000.0,0.00021701,2]
[378746263,1754999460561,-1772.6236861,0.00021701,2]
[378746264,1754999460571,-746.0,0.00021716,2]
[378746265,1754999460582,-350.0,0.00021724,2]
[378746266,1754999460592,-274.6,0.00021732,2]
[378746267,1754999460603,-3000.0,0.0002175,2]
[378746268,1754999460613,-746.0,0.00021766,2]
[378746269,1754999460624,-1000.0,0.00021804,2]
[378746270,1754999460634,-1000.0,0.00021804,2]
[378746271,1754999460644,-162.65333618,0.00021808,2]
[378746272,1754999460654,-125.49676488,0.00021818,2]
[378746277,1754999688285,609.403359,0.00017244,2]
[378746279,1754999855577,383.68667,0.00013699,2]
[378746290,1754999876801,20533.68877657,0.00018,2]
[378746291,1754999921392,800.67573853,0.00017913,2]
[378746293,1755000092714,24900.0,0.00017163,2]
[378746294,1755000102314,151.584831,0.000231,30]
[378746295,1755000125859,158.4549519,0.00017473,2]
[378746302,1755000596754,860.72641896,0.00017912,2]
[378746317,1755000632090,-300.0,0.0001801,2]
[378746319,1755000632100,-300.0,0.0001801,2]
[378746321,1755000632111,-1252.28,0.00018011,2]
[378746323,1755000632125,-460.0,0.00018011,2]
[378746324,1755000632136,-460.0,0.00018011,2]
[378746325,1755000632147,-460.0,0.00018011,2]
[378746327,1755000632158,-304.6383966,0.00018011,2]
[378746331,1755000632195,-155.3616034,0.00018011,2]
[378746333,1755000632206,-308.30216458,0.00018011,2]
[378746335,1755000632219,-687.23783542,0.00018011,2]
[378746338,1755000632230,-893.56,0.00018011,2]
[378746340,1755000632240,-460.0,0.00018011,2]
[378746341,1755000632251,-460.0,0.00018011,2]
[378746343,1755000632263,-635.65,0.00018011,2]
[378746344,1755000632275,-460.0,0.00018011,2]
[378746345,1755000632285,-749.64101136,0.00018011,2]
[378746346,1755000632299,-1365.74898864,0.00018011,2]
[378746347,1755000632309,-460.0,0.00018011,2]
[378746348,1755000632320,-460.0,0.00018012,2]
[378746349,1755000632331,-460.0,0.00018012,2]
[378746350,1755000632342,-460.0,0.00018012,2]
[378746351,1755000632352,-460.0,0.00018012,2]
[378746352,1755000632363,-460.0,0.00018012,2]
[378746353,1755000632374,-460.0,0.00018012,2]
[378746354,1755000632385,-460.0,0.00018012,2]
[378746355,1755000632396,-460.0,0.00018012,2]
[378746356,1755000632406,-460.0,0.00018012,2]
[378746357,1755000632416,-460.0,0.00018012,2]
[378746358,1755000632427,-460.0,0.00018012,2]
[378746359,1755000632437,-574.83427458,0.00018012,2]
[378746360,1755000632448,-576.41,0.00018012,2]
[378746361,1755000632458,-460.0,0.00018012,2]
[378746362,1755000632469,-460.0,0.00018012,2]
[378746363,1755000632479,-460.0,0.00018012,2]
[378746364,1755000632489,-460.0,0.00018012,2]
[378746365,1755000632499,-460.0,0.00018012,2]
[378746366,1755000632510,-460.0,0.00018012,2]
[378746367,1755000632520,-460.0,0.00018012,2]
[378746368,1755000632530,-460.0,0.00018012,2]
[378746369,1755000632541,-460.0,0.00018012,2]
[378746370,1755000632551,-460.0,0.00018012,2]
[378746371,1755000632562,-460.0,0.00018012,2]
[378746372,1755000632572,-460.0,0.00018012,2]
[378746373,1755000632583,-460.0,0.00018012,2]
[378746374,1755000632593,-206.98890967,0.00018012,2]
[378746375,1755000632607,-253.01109033,0.00018012,2]
[378746376,1755000632617,-446.77911674,0.00018012,2]
[378746392,1755000638002,-460.0332552,0.00018011,2]
[378746393,1755000638012,-13.22088326,0.00018012,2]
[378746394,1755000638022,-460.0,0.00018012,2]
[378746395,1755000638032,-460.0,0.00018012,2]
[378746396,1755000638041,-664.35,0.00018012,2]
[378746397,1755000638051,-460.0,0.00018012,2]
[378746398,1755000638061,-460.0,0.00018012,2]
[378746399,1755000638070,-601.75,0.00018012,2]
[378746400,1755000638079,-460.0,0.00018012,2]
[378746401,1755000638088,-460.0,0.00018012,2]
[378746402,1755000638097,-460.0,0.00018012,2]
[378746403,1755000638106,-460.0,0.00018012,2]
[378746405,1755000638115,-1560.37,0.00018012,2]
[378746407,1755000638124,-460.0,0.00018012,2]
[378746410,1755000638133,-460.0,0.00018012,2]
[378746412,1755000638142,-460.0,0.00018012,2]
[378746414,1755000638151,-460.0,0.00018012,2]
[378746416,1755000638160,-505.6,0.00018012,2]
[378746418,1755000638169,-705.68,0.00018012,2]
[378746420,1755000638179,-460.0,0.00018012,2]
[378746422,1755000638187,-460.0,0.00018012,2]
[378746424,1755000638197,-460.0,0.00018012,2]
[378746426,1755000638207,-460.0,0.00018012,2]
[378746428,1755000638216,-2670.17,0.00018012,2]
[378746430,1755000638226,-460.0,0.00018012,2]
[378746432,1755000638236,-460.0,0.00018012,2]
[378746434,1755000638245,-460.0,0.00018012,2]
[378746436,1755000638263,-460.0,0.00018012,2]
[378746438,1755000638272,-460.0,0.00018012,2]
[378746440,1755000638282,-460.0,0.00018012,2]
[378746442,1755000638291,-460.0,0.00018012,2]
[378746444,1755000638301,-460.0,0.00018012,2]
[378746446,1755000638310,-460.0,0.00018012,2]
[378746448,1755000638320,-440.37161655,0.00018012,2]
[378746450,1755000638334,-500.0,0.00018012,2]
[378746452,1755000638343,-500.0,0.00018012,2]
[378746454,1755000638353,-500.0,0.00018012,2]
[378746456,1755000638363,-446.29433378,0.00018012,2]
[378746458,1755000638372,-460.0,0.00018012,2]
[378746460,1755000638381,-661.64,0.00018012,2]
[378746462,1755000638390,-216.25492597,0.00018012,2]
[378746464,1755000638399,-460.0,0.00018012,2]
[378746466,1755000638409,-836.09,0.00018012,2]
[378746468,1755000638418,-460.0,0.00018012,2]
[378746470,1755000638427,-930.07,0.00018012,2]
[378746472,1755000638437,-460.0,0.00018012,2]
[378746474,1755000638447,-460.0,0.00018012,2]
[378746476,1755000638456,-460.0,0.00018012,2]
[378746478,1755000638465,-461.11,0.00018012,2]
[378746479,1755000638474,-460.0,0.00018012,2]
[378746480,1755000638483,-460.0,0.00018012,2]
[378746482,1755000638493,-6177.62,0.00018012,2]
[378746483,1755000638502,-460.0,0.00018012,2]
[378746484,1755000638512,-573.23,0.00018012,2]
[378746485,1755000638522,-460.0,0.00018012,2]
[378746486,1755000638531,-1703.42,0.00018012,2]
[378746487,1755000638540,-625.97,0.00018012,2]
[378746488,1755000638549,-460.0,0.00018012,2]
[378746489,1755000638558,-1061.0,0.00018012,2]
[378746490,1755000638567,-537.1,0.00018012,2]
[378746491,1755000638576,-475.24,0.00018012,2]
[378746492,1755000638585,-460.0,0.00018012,2]
[378746493,1755000638594,-666.44,0.00018012,2]
[378746494,1755000638604,-460.0,0.00018012,2]
[378746495,1755000638613,-638.44,0.00018012,2]
[378746496,1755000638623,-2273.73,0.00018012,2]
[378746497,1755000638633,-460.0,0.00018012,2]
[378746498,1755000638642,-460.0,0.00018013,2]
[378746499,1755000638652,-736.75,0.00018013,2]
[378746500,1755000638662,-460.0,0.00018013,2]
[378746501,1755000638671,-460.0,0.00018013,2]
[378746502,1755000638681,-460.0,0.00018013,2]
[378746503,1755000638690,-460.0,0.00018013,2]
[378746504,1755000638700,-460.0,0.00018013,2]
[378746505,1755000638709,-460.0,0.00018013,2]
[378746506,1755000638719,-460.0,0.00018013,2]
[378746507,1755000638728,-460.0,0.00018013,2]
[378746508,1755000638738,-460.0,0.00018013,2]
[378746509,1755000638748,-460.0,0.00018013,2]
[378746510,1755000638758,-460.0,0.00018013,2]
[378746511,1755000638767,-460.0,0.00018013,2]
[378746512,1755000638778,-467.25878383,0.00018013,2]
[378746513,1755000638787,-460.0,0.00018013,2]
[378746514,1755000638796,-460.0,0.00018013,2]
[378746515,1755000638806,-460.0,0.00018013,2]
[378746516,1755000638815,-460.0,0.00018013,2]
[378746517,1755000638826,-702.07,0.00018013,2]
[378746518,1755000638835,-460.0,0.00018013,2]
[378746519,1755000638846,-460.0,0.00018013,2]
[378746520,1755000638860,-953.07,0.00018013,2]
[378746521,1755000638869,-554.97117967,0.00018013,2]
[378746522,1755000638881,-910.9,0.00018013,2]
[378746523,1755000638892,-969.47,0.00018013,2]
[378746524,1755000638902,-460.0,0.00018013,2]
[378746525,1755000638911,-919.15,0.00018013,2]
[378746526,1755000638920,-489.17,0.00018013,2]
[378746527,1755000638930,-460.0,0.00018013,2]
[378746528,1755000638939,-1201.31,0.00018013,2]
[378746529,1755000638949,-237.74197553,0.00018013,2]
[378746530,1755000638959,-460.0,0.00018013,2]
[378746531,1755000638969,-460.0,0.00018013,2]
[378746532,1755000638978,-1237.8,0.00018013,2]
[378746533,1755000638987,-460.0,0.00018013,2]
[378746534,1755000638997,-460.0,0.00018013,2]
[378746535,1755000639006,-600.97,0.00018013,2]
[378746536,1755000639015,-531.2,0.00018013,2]
[378746537,1755000639024,-460.0,0.00018013,2]
[378746538,1755000639034,-460.0,0.00018013,2]
[378746539,1755000639043,-460.0,0.00018013,2]
[378746540,1755000639052,-1448.93,0.00018013,2]
[378746541,1755000639061,-460.0,0.00018013,2]
[378746542,1755000639070,-460.0,0.00018013,2]
[378746543,1755000639079,-460.0,0.00018013,2]
[378746544,1755000639088,-460.0,0.00018013,2]
[378746545,1755000639097,-460.0,0.00018013,2]
[378746546,1755000639106,-168.60759206,0.00018013,2]
[378746547,1755000639115,-460.0,0.00018014,2]
[378746548,1755000639124,-460.0,0.00018014,2]
[378746549,1755000639133,-460.0,0.00018014,2]
[378746550,1755000639142,-427.16410136,0.00018014,2]
[378746551,1755000639152,-460.0,0.00018014,2]
[378746552,1755000639161,-460.0,0.00018014,2]
[378746553,1755000639170,-460.0,0.00018014,2]
[378746554,1755000639179,-482.74680707,0.00018014,2]
[378746555,1755000639189,-460.0,0.00018014,2]